Cogmind - Beta 9 @@@ ROGUE MODE // 2019.10.26 @ 16:08:40 Player: ModulinMyGlobulin Result: Self-destructed Performance ------------- Evolutions (1) 500 Regions Visited (2) 400 Robots Destroyed (7) 35 Value Destroyed (195) 195 Prototype IDs (2) 40 Alien Tech Used (0) 0 Bonus (0) 0 TOTAL SCORE: 1170 Bonus ------- None Cogmind --------- Core Integrity 353/400 Matter 128/300 Energy 46/250 System Corruption 0% Temperature Cool (580) Location -9/Materials Parts ------- Power (1) Ion Engine Propulsion (3) Wheel Wheel Wheel Utility (3) Medium Storage Unit Medium Armor Plating Hacking Suite Weapon (2) Light EM Pulse Cannon Particle Cannon Inventory (8) Light Ion Engine Light Treads Aluminum Leg Aluminum Leg Small Laser Light EM Pulse Cannon Beam Cannon Beam Cannon Peak State ------------ Power Ion Engine Propulsion Wheel Wheel Wheel Utility Medium Storage Unit Medium Armor Plating Hacking Suite Weapon Light EM Pulse Cannon Particle Cannon Inventory Light Ion Engine Light Treads Aluminum Leg Aluminum Leg Small Laser Light EM Pulse Cannon Beam Cannon Beam Cannon [Rating: 14] Favorites ----------- Power Ion Engine Engine Ion Engine Propulsion Wheel Treads Light Treads Wheel Wheel Utility Hacking Suite Storage Medium Storage Unit Hackware Hacking Suite Protection Medium Armor Plating Weapon Medium Laser Energy Gun Medium Laser Energy Cannon Beam Cannon Build | -11 -10 -9 ------- Run | Scr Mat Mat Slots Evolved 2 | . . 2 Power . | . . . Propulsion 1 | . . 1 Utility 1 | . . 1 Weapon . | . . . Parts Attached 15 | 6 3 6 Power 1 | 1 . . Engine 1 | 1 . . Core . | . . . Reactor . | . . . Propulsion 5 | 2 . 3 Treads 1 | . . 1 Leg . | . . . Wheel 4 | 2 . 2 Hover . | . . . Flight . | . . . Utility 4 | 1 2 1 Device . | . . . Storage 2 | 1 1 . Processor . | . . . Hackware 1 | . 1 . Protection 1 | . . 1 Artifact . | . . . Weapon 5 | 2 1 2 Energy Gun 2 | 2 . . Energy Cannon 3 | . 1 2 Ballistic Gun . | . . . Ballistic Cannon . | . . . Launcher . | . . . Special Weapon . | . . . Impact Weapon . | . . . Slashing Weapon . | . . . Piercing Weapon . | . . . Special Melee Weapon . | . . . Unidentified Prototypes . | . . . Parts Lost . | . . . Power . | . . . Propulsion . | . . . Utility . | . . . Weapon . | . . . Highest Loss Streak . | . . . Average Slot Usage (%) 95 | . 95 96 Engine 12 | . 14 11 Treads 1 | . . 3 Wheel 28 | . 28 29 Storage 12 | . 14 11 Hackware 10 | . 9 11 Protection 2 | . . 7 Energy Gun 13 | . 19 2 Energy Cannon 12 | . 8 19 Naked Turns . | . . . Heaviest Build 28 | 12 18 28 Greatest Support 30 | 20 20 30 Greatest Overweight (x) 3 | 3 . 1 Average Overweight (x) . | . . . Largest Inventory Capacity 8 | 6 8 8 Average Capacity 7 | 5 7 8 Most Carried 8 | 6 7 8 Average Carried 6 | 4 6 7 Final Capacity 8 | . . 8 Final Carried 8 | . . 8 Class Distribution -------------------- 100% | Mutant Dominant Class ---------------- Mutant | -10/Materials Mutant | -9/Materials Resources | -11 -10 -9 ----------- Run | Scr Mat Mat Matter Collected 175 | 110 65 . Remotely . | . . . Salvage Created 317 | 111 156 50 Parts 18 | 3 11 4 Haulers Intercepted . | . . . Recyclers Shooed 1 | 1 . . Parts Field Recycled . | . . . Retrieved Matter . | . . . Parts Self-Destructed . | . . . Prevented . | . . . Kills | -11 -10 -9 ------- Run | Scr Mat Mat Combat Hostiles Destroyed 4 | . 3 1 Cannons 4 | . 3 1 Classes Destroyed 4 | 2 2 . Tunneler 1 | 1 . . Recycler 1 | 1 . . Operator 1 | . 1 . Grunt 4 | . 3 1 Best Kill Streak 3 | 2 3 1 Combat Bots Only 3 | . 3 1 Max Kills in Single Turn 1 | 1 1 1 Gunslinging . | . . . Exploded . | . . . Melee . | . . . Uniques/NPCs Destroyed . | . . . Combat | -11 -10 -9 -------- Run | Scr Mat Mat Damage Taken 301 | . 99 202 Core 73 | . 26 47 Absorbed by Shields . | . . . Core Remaining (%) 94 | 100 89 . Volleys Fired 22 | 7 7 8 Largest 2 | 2 2 2 Hottest 124 | 90 110 124 Shots Fired 44 | 14 14 16 Gun 23 | 14 9 . Cannon 21 | . 5 16 Launcher . | . . . Special . | . . . Kinetic . | . . . Thermal 36 | 14 14 8 Explosive . | . . . Electromagnetic 8 | . . 8 Robot Hit Streak 4 | 3 3 4 Robot Miss Streak 3 | 3 2 3 Penetration Max . | . . . Secondary Targets . | . . . Shots Hit Robots 23 | 6 9 8 Core Hits 9 | 3 5 1 Critical Hits . | . . . Critical Kills . | . . . Critical Parts Destroyed . | . . . Melee Attacks . | . . . Impact . | . . . Slashing . | . . . Piercing . | . . . Sneak Attacks . | . . . Combat Hostiles . | . . . Follow-up Attacks . | . . . Damage Inflicted 374 | 94 149 131 Guns 155 | 94 61 . Cannons 201 | . 70 131 Explosions . | . . . Melee . | . . . Ramming 18 | . 18 . Kinetic . | . . . Thermal 286 | 94 131 61 Explosive . | . . . Electromagnetic 70 | . . 70 Impact . | . . . Slashing . | . . . Piercing . | . . . Highest Corruption . | . . . Average Corruption . | . . . Corruption Purged . | . . . Overload Shots . | . . . Overflow Damage 7 | . . 7 Projectiles 7 | . . 7 Explosions . | . . . Melee . | . . . Knockbacks . | . . . Impact . | . . . Kinetic . | . . . Secondary . | . . . Self-Inflicted Damage 9 | . 9 . Shots . | . . . Rammed 1 | . 1 . Targets Rammed 1 | . 1 . Kicked . | . . . Crushed . | . . . Highest Temperature 580 | 210 210 580 Average Temperature 145 | 106 79 286 Received Heat Transfer 138 | . 33 105 Effects 4 | . . 4 Shutdowns 1 | . . 1 Energy Bleed 1 | . . 1 Damage (major) 2 | . . 2 Siege Activations . | . . . Robots Corrupted . | . . . Combat Hostiles . | . . . Parts Fried . | . . . Impact Corruptions . | . . . Robots Melted . | . . . Combat Hostiles . | . . . Parts Melted 2 | 1 1 . Heat Transferred 692 | 260 321 111 Parts Sabotaged . | . . . Parts Stolen . | . . . Parts Stripped . | . . . Power Chain Reactions . | . . . Missiles Intercepted . | . . . Alert | -11 -10 -9 ------- Run | Scr Mat Mat Peak Influence 166 | 10 166 159 Average Influence 51 | 3 52 90 Maximum Alert Level . | . . . Low Security (%) 100 | . . . Level 1 . | . . . Level 2 . | . . . Level 3 . | . . . Level 4 . | . . . Level 5 . | . . . High Security . | . . . Max Security . | . . . Squads Dispatched 4 | . 3 1 Investigation 1 | . . 1 Extermination . | . . . Reinforcement 3 | . 3 . Assault . | . . . Garrison . | . . . Intercept . | . . . Construction Impeded . | . . . Haulers Reinforced . | . . . Stealth | -11 -10 -9 --------- Run | Scr Mat Mat Distress Signals 1 | . 1 . Communications Jammed . | . . . Distress Signals . | . . . Times Spotted 18 | . 12 6 Peak Tracking Total 8 | . 6 8 Tactical Retreats 1 | . . 1 Traps | -11 -10 -9 ------- Run | Scr Mat Mat Traps Triggered 2 | . 1 1 Indirectly . | . . . Trap Hack Attempts . | . . . Triggered . | . . . Disarmed . | . . . Reprogrammed . | . . . Reused . | . . . Traps Extracted . | . . . Installed . | . . . Triggered . | . . . Machines | -11 -10 -9 ---------- Run | Scr Mat Mat Machines Disabled 3 | . 1 2 Max in Single Turn 1 | . 1 1 Machines Sabotaged . | . . . Garrisons Compromised . | . . . Overloaded Fab Kills . | . . . Fab Network Shutdowns . | . . . Hacking | -11 -10 -9 --------- Run | Scr Mat Mat Machines Accessed 4 | . 2 2 Terminals 3 | . 2 1 Fabricators . | . . . Repair Stations 1 | . . 1 Recycling Units . | . . . Scanalyzers . | . . . Garrison Access . | . . . Total Hacks 4 | . 2 2 Successful 2 | . 1 1 Failed 2 | . 1 1 Catastrophic 2 | . 1 1 Database Lockouts . | . . . Manual 2 | . 1 1 Terminals 3 | . 2 1 Fabricators . | . . . Repair Stations 1 | . . 1 Recycling Units . | . . . Scanalyzers . | . . . Garrison Access . | . . . Terminal Hacks 1 | . 1 . Prototype ID Bank 1 | . 1 . Fabricator Hacks . | . . . Repair Station Hacks 1 | . . 1 Scan Component 1 | . . 1 Recycling Unit Hacks . | . . . Scanalyzer . | . . . Garrison Access Hacks . | . . . Unauthorized Hacks . | . . . Terminals . | . . . Fabricators . | . . . Repair Stations . | . . . Recycling Units . | . . . Scanalyzers . | . . . Garrison Access . | . . . Data Cores Recovered . | . . . Used . | . . . Hacking Detections 3 | . 2 1 Full Trace Events . | . . . Feedback Events . | . . . Feedback Blocked . | . . . Robot Schematics Acquired . | . . . Robots Built . | . . . Matter . | . . . Time . | . . . Total Robot Build Rating . | . . . Part Schematics Acquired . | . . . Parts Built . | . . . Matter . | . . . Time . | . . . Total Part Build Rating . | . . . Parts Repaired . | . . . Time . | . . . Parts Recycled . | . . . Recycled Matter . | . . . Retrieved Matter . | . . . Retrieved Components . | . . . Parts Scanalyzed . | . . . Part Schematics Acquired . | . . . Parts Damaged . | . . . Bothacking | -11 -10 -9 ------------ Run | Scr Mat Mat Used RIF Installer . | . . . Robots Hacked . | . . . Non-combat . | . . . Combat . | . . . Robot Hacks Applied . | . . . Relay Couplers Released . | . . . Robots Rewired . | . . . Allies Hacked . | . . . Hacks Repelled . | . . . Allies | -11 -10 -9 -------- Run | Scr Mat Mat Total Allies . | . . . Largest Group . | . . . Highest-Rated Group . | . . . Highest-Rated Ally . | . . . Total Orders . | . . . Ally Attacks . | . . . Total Damage . | . . . Kills . | . . . Allies Corrupted . | . . . Allies Melted . | . . . Intel | -11 -10 -9 ------- Run | Scr Mat Mat Robot Analysis Total . | . . . Derelict Logs Recovered . | . . . Drone Launches . | . . . Drone Recoveries . | . . . Exploration | -11 -10 -9 ------------- Run | Scr Mat Mat Turns Passed 333 | 81 158 94 Spaces Moved 274 | 40 162 72 Core 19 | 19 . . Treads . | . . . Legs . | . . . Wheels 255 | 21 162 72 Hover . | . . . Flight . | . . . Fastest Speed 50 | 50 80 80 Average Speed 84 | 108 80 81 Slowest Speed 200 | 200 80 90 Overloaded Moves . | . . . Propulsion Burnouts . | . . . Robots Hopped . | . . . Cave-ins Triggered . | . . . Exploration Rate (%) 17 | 4 37 11 Regions Visited 2 Branch Regions . Pre-discovered Areas . | . . . Known Exits Taken . | . . . Unknown Exits Taken 2 | 1 1 . Scrap Searched . | . . . Spaces Dug . | . . . Terrain Destroyed . | . . . Melee . | . . . Projectile . | . . . AOE . | . . . Actions | -11 -10 -9 --------- Run | Scr Mat Mat Total 325 | 60 176 89 Wait 2 | . 1 1 Move 272 | 39 161 72 Hop . | . . . Pick Up 9 | 7 1 1 Fast Attach 10 | 6 2 2 Attach 1 | . . 1 Detach . | . . . Swap 4 | . 1 3 Drop 4 | 1 2 1 Fire 22 | 7 7 8 Melee . | . . . Ram 1 | . 1 . Kick . | . . . Crush . | . . . Escape Stasis . | . . . Rewire . | . . . Trap . | . . . Miscellaneous . | . . . Route ------- -11/Scrapyard -10/Materials (discovered 2 exits: *Mat / [*Min]) -9/Materials History --------- Turn | Location | Event 37 | -11/Scrapyard | Discovered new exit (range 14) 82 | -11/Scrapyard | Entered Materials 159 | -10/Materials | Discovered new exit (range 14) 228 | -10/Materials | Discovered new exit (range 16) 240 | -10/Materials | Entered another Materials area 240 | -9/Materials | Evolved 2 slots: Propulsion x1, Utility x1 316 | -9/Materials | Build established: Mutant 334 | -9/Materials | Self-destructed Last Messages --------------- Ready to Repair: Wheel Rating: 1 Time: 26 00261_ Dropped Med. Laser. 00261_ Acquired Particle Cannon. 00263_ Acquired Lgt. EM Pulse Cannon. 00276_ Acquired Med. Armor Plating. 00288_ Connecting with Terminal... 00300_ Triggered Alarm Trap. 00300_ An alarm sounds. 00300_ ALERT: Alarm triggered, dispatching investigation squad. 00312_ Terminal disabled. 00320_ U-05 Engineer lays Concrete. 00325_ G-34 Mercenary destroyed. 00327_ Overheating: Med. Storage Unit damaged (-75). 00327_ Overheating: Ion Engine damaged (-45). 00331_ Destroyed Sml. Laser. 00334_ Power failure, Ion Engine shutdown. 00334_ Overheating: Energy bleed (-11). Map ----- +----------------------------------------------------+ | | | | | | | | | | | | | ?????????????????????????????????????????????????? | | ?????????????????????????????????????????????????? | | ?????????????????????????????????????????????????? | | ?????????????????????????????????????????????????? | | ?????????????????????????????????????????????????? | | ?????????????????????????????????????????????????? | | ?????????????????????????????????????????????????? | | ?????????????????????????????????????????????????? | | ?????????????????????????????????????????????????? | | ?????????????????????????????????????????????????? | | ?????????????????????????????????????????????????? | | ?????????????????????????????????????????????????? | | ?????????????????????????????????????????????????? | | ?????????????????????????????????????????????????? | | ?????????????????????????????????????????????????? | | ??????????????####???????????????????????????????? | | ??????????? ## = ######################???????? | | ?????????? [%= g #???????? | | ?????????? * g g #???????? | | ?????????? @ uu t #???????? | | ??????????????# # u######## #???????? | | ????????????????????# ?????????# """"" #???????? | | ???????????????????????????????# """"" #???????? | | ???????????????????????????????# """"" #???????? | | ???????????????????????????????# """"" #???????? | | ???????????????????????????????# """"" #???????? | | ???????????????????????????????# """"" #???????? | | ???????????????????????????????# """"" #???????? | | ???????????????????????????????# #######?? | | ???????????????????????????????# # ### | | ???????????????????????????????# | | ???????????????????????????????# T | | ???????????????????????????????# | | ???????????????????????????????# ##### ### | | ???????????????????????????????#######???## ##?? | | ??????????????????????????????????????????# #??? | | ??????????????????????????????????????????# #??? | | ??????????????????????????????????????????# #### | | ??????????????????????????????????????????# # % | | ??????????????????????????????????????????# #%[ | | ??????????????????????????????????????????# # | | ??????????????????????????????????????????# / | | ??????????????????????????????????????????+ # | | ??????????????????????????????????????????# # ! | +----------------------------------------------------+ Best States ------------- Heat Dissipation 28 Energy Generation 10 Energy Capacity 250 Matter Stores 188 Matter Capacity 300 Sight Range 16 Terrain Scan Density 10 Armor Coverage 225 Evasion (%) 44 Offensive Hacking 10 Item Schematics ----------------- None Robot Schematics ------------------ None Fabricated ------------ Nothing Alien Tech Used ----------------- None Achievements -------------- None Challenges ------------ None Game ------ Seed AlphaMeleePenetrator Manual? 0 Play Time 00:07:19 Cumulative 43.4 hours Start 2019.10.26 @ 16:02:36 End 2019.10.26 @ 16:08:40 Sessions 1 Manual Loads 0 Difficulty Rogue Special Mode None Game No. 116 Rogue 116 Adventurer 0 Explorer 0 Win Type - Total 0 Types 0/0/0/0/0/0/0 Lore% 34 Gallery% 37 Achievement% 20 Wizard Run 0 Options --------- ASCII 0 Keyboard 0 Movement Numpad Keybinds 0 Fullscreen 1 Font 18/SmallcapsGlow Map View 76x50 Tactical HUD 1 Map Filters NONE Filters NONE Steam 1 RUN: 1f08ed0e-af71-4905-8274-b30588907ea3